fUST/lending_fUST_20250930
["ID","MTS","AMOUNT","RATE_DAILY","PERIOD"]
[388562939,1759243259034,-500.0,0.00019452,2]
[388562940,1759243259063,-500.0,0.00019452,2]
[388562941,1759243259092,-500.0,0.00019452,2]
[388562942,1759243259121,-500.0,0.00019452,2]
[388562943,1759243259149,-500.0,0.00019452,2]
[388562944,1759243259177,-500.0,0.00019452,2]
[388562945,1759243259206,-500.0,0.00019452,2]
[388562946,1759243259235,-500.0,0.00019452,2]
[388562947,1759243259263,-500.0,0.00019452,2]
[388562948,1759243259293,-418.39469303,0.00019452,2]
[388562949,1759243259321,-500.0,0.00019452,2]
[388562950,1759243259351,-500.0,0.00019452,2]
[388562951,1759243259380,-500.0,0.00019452,2]
[388562952,1759243259410,-500.0,0.00019452,2]
[388562953,1759243259438,-500.0,0.00019452,2]
[388562954,1759243259468,-519.41,0.00019452,2]
[388562955,1759243259499,-483.16675203,0.00019452,2]
[388562956,1759243259529,-406.48895099,0.00019452,2]
[388562957,1759243259560,-500.0,0.00019452,2]
[388562958,1759243259591,-198.0,0.00019452,2]
[388562959,1759243259623,-500.0,0.00019452,2]
[388562960,1759243259652,-500.0,0.00019452,2]
[388562961,1759243259681,-500.0,0.00019452,2]
[388562962,1759243259714,-500.0,0.00019452,2]
[388562963,1759243259743,-500.0,0.00019452,2]
[388562964,1759243259774,-500.0,0.00019452,2]
[388562965,1759243259803,-379.828545,0.00019452,2]
[388562966,1759243259833,-500.0,0.00019452,2]
[388562967,1759243259862,-500.0,0.00019452,2]
[388562968,1759243259891,-500.0,0.00019452,2]
[388562969,1759243259920,-500.0,0.00019452,2]
[388562970,1759243259947,-500.0,0.00019452,2]
[388562971,1759243259976,-211.31893517,0.00019452,2]
[388562972,1759243260006,-500.0,0.00019452,2]
[388562973,1759243260034,-500.0,0.00019452,2]
[388562974,1759243260064,-500.0,0.00019452,2]
[388562975,1759243260213,-3938.37,0.00019452,2]
[388562976,1759243260243,-500.0,0.00019452,2]
[388562977,1759243260273,-500.0,0.00019452,2]
[388562978,1759243260302,-500.0,0.00019452,2]
[388562979,1759243260333,-500.0,0.00019452,2]
[388562980,1759243260362,-500.0,0.00019452,2]
[388562981,1759243260392,-460.0,0.00019452,2]
[388562982,1759243260422,-772.65,0.00019452,2]
[388562983,1759243260452,-500.0,0.00019452,2]
[388562984,1759243260480,-500.0,0.00019452,2]
[388562985,1759243260511,-500.0,0.00019452,2]
[388562986,1759243260539,-500.0,0.00019452,2]
[388562987,1759243260568,-500.0,0.00019452,2]
[388562988,1759243260598,-500.0,0.00019452,2]
[388562989,1759243260626,-510.04257056,0.00019452,2]
[388562990,1759243260653,-500.0,0.00019452,2]
[388562991,1759243260681,-614.53,0.00019452,2]
[388562992,1759243260712,-912.83,0.00019452,2]
[388562993,1759243260740,-500.0,0.00019452,2]
[388562994,1759243260770,-198.0,0.00019452,2]
[388562995,1759243260801,-151.0,0.00019452,2]
[388562996,1759243260830,-636.66,0.00019452,2]
[388562997,1759243260858,-500.0,0.00019452,2]
[388562998,1759243260886,-707.09,0.00019452,2]
[388562999,1759243260914,-500.0,0.00019452,2]
[388563000,1759243260942,-500.0,0.00019452,2]
[388563001,1759243260969,-519.25,0.00019452,2]
[388563002,1759243260995,-500.0,0.00019452,2]
[388563003,1759243261021,-500.0,0.00019452,2]
[388563004,1759243261048,-500.0,0.00019452,2]
[388563005,1759243261075,-623.93,0.00019452,2]
[388563006,1759243261101,-500.0,0.00019452,2]
[388563007,1759243261129,-500.0,0.00019452,2]
[388563008,1759243261157,-151.0,0.00019452,2]
[388563009,1759243261186,-500.0,0.00019452,2]
[388563010,1759243261214,-1123.0,0.00019452,2]
[388563011,1759243261242,-500.0,0.00019452,2]
[388563012,1759243261271,-571.05330181,0.00019452,2]
[388563013,1759243261298,-500.0,0.00019452,2]
[388563014,1759243261327,-500.0,0.00019452,2]
[388563015,1759243261355,-480.0,0.00019452,2]
[388563016,1759243261385,-7230.8859513,0.00019452,2]
[388563017,1759243261413,-500.0,0.00019452,2]
[388563018,1759243261442,-500.0,0.00019452,2]
[388563019,1759243261471,-500.0,0.00019452,2]
[388563020,1759243261500,-500.0,0.00019452,2]
[388563021,1759243261529,-500.0,0.00019452,2]
[388563022,1759243261556,-500.0,0.00019452,2]
[388563023,1759243261584,-500.0,0.00019452,2]
[388563024,1759243261615,-705.23,0.00019452,2]
[388563025,1759243261644,-500.0,0.00019452,2]
[388563026,1759243261673,-500.0,0.00019452,2]
[388563027,1759243261701,-500.0,0.00019452,2]
[388563028,1759243261741,-500.0,0.00019452,2]
[388563029,1759243261771,-332.26306786,0.00019452,2]
[388563030,1759243261799,-151.0,0.00019452,2]
[388563031,1759243261826,-228.87048398,0.00019452,2]
[388563032,1759243261853,-500.0,0.00019452,2]
[388563033,1759243261880,-500.0,0.00019452,2]
[388563034,1759243261908,-500.0,0.00019452,2]
[388563035,1759243261936,-500.0,0.00019452,2]
[388563036,1759243261964,-500.0,0.00019452,2]
[388563037,1759243261994,-151.0,0.00019452,2]
[388563038,1759243262024,-500.0,0.00019452,2]
[388563039,1759243262053,-500.0,0.00019452,2]
[388563040,1759243262081,-500.0,0.00019452,2]
[388563041,1759243262110,-500.0,0.00019452,2]
[388563042,1759243262140,-500.0,0.00019452,2]
[388563043,1759243262168,-973.16,0.00019452,2]
[388563044,1759243262196,-500.0,0.00019452,2]
[388563045,1759243262224,-500.0,0.00019452,2]
[388563046,1759243262254,-500.0,0.00019452,2]
[388563047,1759243262282,-500.0,0.00019452,2]
[388563048,1759243262311,-500.0,0.00019452,2]
[388563049,1759243262341,-281.07,0.00019452,2]
[388563050,1759243262369,-500.0,0.00019452,2]
[388563051,1759243262398,-685.58,0.00019452,2]
[388563052,1759243262427,-3213.89,0.00019452,2]
[388563053,1759243262455,-405.25,0.00019452,2]
[388563054,1759243262483,-500.0,0.00019452,2]
[388563055,1759243262516,-500.0,0.00019452,2]
[388563056,1759243262544,-500.0,0.00019452,2]
[388563057,1759243262574,-500.0,0.00019452,2]
[388563058,1759243262603,-3751.52,0.00019452,2]
[388563059,1759243262633,-500.0,0.00019452,2]
[388563060,1759243262662,-500.0,0.00019452,2]
[388563061,1759243262691,-500.0,0.00019452,2]
[388563062,1759243262720,-117675.65706421,0.00019512,2]
[388563063,1759243262748,-3330.707479,0.00019512,2]
[388563064,1759243262777,-151.0,0.00019512,2]
[388563065,1759243262811,-151.0,0.00019512,2]
[388563066,1759243262840,-151.0,0.00019512,2]
[388563067,1759243262869,-501.29297048,0.00019573,2]
[388563068,1759243262898,-500.0,0.00019573,2]
[388563069,1759243262930,-168.0,0.00019625,2]
[388563070,1759243262960,-329.0,0.00019699,3]
[388563071,1759243262990,-245.0,0.00019726,2]
[388563072,1759243263021,-151.0,0.00019726,2]
[388563073,1759243263052,-198.0,0.00019726,2]
[388563074,1759243263083,-151.0,0.00019726,2]
[388563075,1759243263114,-1123.0,0.00019726,2]
[388563076,1759243263146,-151.0,0.00019726,2]
[388563077,1759243263176,-500.0,0.00019726,2]
[388563078,1759243263207,-273.73581332,0.00019726,2]
[388563079,1759243263366,-407.68704339,0.00019726,2]
[388563080,1759243263397,-500.0,0.00019726,2]
[388563081,1759243263429,-500.0,0.00019726,2]
[388563082,1759243263460,-500.0,0.00019726,2]
[388563083,1759243263492,-500.0,0.00019726,2]
[388563084,1759243263524,-500.0,0.00019726,2]
[388563085,1759243263555,-500.0,0.00019726,2]
[388563086,1759243263587,-500.0,0.00019726,2]
[388563087,1759243263617,-500.0,0.00019726,2]
[388563088,1759243263648,-500.0,0.00019726,2]
[388563089,1759243263686,-500.0,0.00019726,2]
[388563090,1759243263718,-500.0,0.00019726,2]
[388563091,1759243263748,-500.0,0.00019726,2]
[388563092,1759243263780,-500.0,0.00019726,2]
[388563093,1759243263811,-500.0,0.00019726,2]
[388563094,1759243263840,-500.0,0.00019726,2]
[388563095,1759243263871,-500.0,0.00019726,2]
[388563096,1759243263901,-500.0,0.00019726,2]
[388563097,1759243263932,-500.0,0.00019726,2]
[388563098,1759243263960,-519.41,0.00019726,2]
[388563099,1759243263991,-500.0,0.00019726,2]
[388563100,1759243264021,-500.0,0.00019726,2]
[388563101,1759243264051,-500.0,0.00019726,2]
[388563102,1759243264081,-514.86168406,0.00019726,2]
[388563103,1759243264110,-500.0,0.00019726,2]
[388563104,1759243264140,-338.91165891,0.00019726,2]
[388563105,1759243264170,-500.0,0.00019726,2]
[388563106,1759243264200,-500.0,0.00019726,2]
[388563107,1759243264231,-500.0,0.00019726,2]
[388563108,1759243264265,-500.0,0.00019726,2]
[388563109,1759243264295,-500.0,0.00019726,2]
[388563110,1759243264326,-539.5213492,0.00019726,2]
[388563111,1759243264355,-500.0,0.00019726,2]
[388563112,1759243264386,-500.0,0.00019726,2]
[388563113,1759243264415,-500.0,0.00019726,2]
[388563114,1759243264444,-3938.37,0.00019726,2]
[388563115,1759243264473,-500.0,0.00019726,2]
[388563116,1759243264504,-500.0,0.00019726,2]
[388563117,1759243264536,-500.0,0.00019726,2]
[388563118,1759243264568,-500.0,0.00019726,2]
[388563119,1759243264602,-772.65,0.00019726,2]
[388563120,1759243264632,-500.0,0.00019726,2]
[388563121,1759243264661,-500.0,0.00019726,2]
[388563122,1759243264690,-500.0,0.00019726,2]
[388563123,1759243264720,-500.0,0.00019726,2]
[388563124,1759243264751,-500.0,0.00019726,2]
[388563125,1759243264782,-500.0,0.00019726,2]
[388563126,1759243264813,-500.0,0.00019726,2]
[388563127,1759243264841,-614.53,0.00019726,2]
[388563128,1759243264872,-413.10090199,0.00019726,2]
[388563129,1759243264901,-912.83,0.00019726,2]
[388563130,1759243264929,-636.66,0.00019726,2]
[388563131,1759243264959,-500.0,0.00019726,2]
[388563132,1759243264995,-707.09,0.00019726,2]
[388563133,1759243265023,-500.0,0.00019726,2]
[388563134,1759243265051,-500.0,0.00019726,2]
[388563135,1759243265079,-519.25,0.00019726,2]
[388563136,1759243265106,-500.0,0.00019726,2]
[388563137,1759243265134,-500.0,0.00019726,2]
[388563138,1759243265163,-500.0,0.00019726,2]
[388563139,1759243265192,-623.93,0.00019726,2]
[388563140,1759243265220,-151.0,0.00019726,2]
[388563141,1759243265250,-500.0,0.00019726,2]
[388563142,1759243265278,-577.83076518,0.00019726,2]
[388563143,1759243265306,-151.0,0.00019726,2]
[388563144,1759243265334,-151.0,0.00019726,2]
[388563145,1759243265361,-151.0,0.00019726,2]
[388563146,1759243265389,-151.0,0.00019726,2]
[388563147,1759243265417,-500.0,0.00019726,2]
[388563148,1759243265444,-500.0,0.00019726,2]
[388563149,1759243265471,-500.0,0.00019726,2]
[388563150,1759243265500,-500.0,0.00019726,2]
[388563151,1759243265529,-500.0,0.00019726,2]
[388563152,1759243265558,-588.87,0.00019726,2]
[388563153,1759243265586,-500.0,0.00019726,2]
[388563154,1759243265616,-500.0,0.00019726,2]
[388563155,1759243265644,-500.0,0.00019726,2]
[388563156,1759243265672,-500.0,0.00019726,2]
[388563157,1759243265700,-500.0,0.00019726,2]
[388563158,1759243265734,-705.23,0.00019726,2]
[388563159,1759243265766,-500.0,0.00019726,2]
[388563160,1759243265793,-537.383419,0.00019726,2]
[388563161,1759243265822,-500.0,0.00019726,2]
[388563162,1759243265851,-480.0,0.00019726,2]
[388563163,1759243265879,-500.0,0.00019726,2]
[388563164,1759243265906,-500.0,0.00019726,2]
[388563165,1759243265934,-480.0,0.00019726,2]
[388563166,1759243265962,-500.0,0.00019726,2]
[388563167,1759243265990,-500.0,0.00019726,2]
[388563168,1759243266017,-556.46372869,0.00019726,2]
[388563169,1759243266045,-460.0,0.00019726,2]
[388563170,1759243266073,-500.0,0.00019726,2]
[388563171,1759243266099,-973.16,0.00019726,2]
[388563172,1759243266126,-500.0,0.00019726,2]
[388563173,1759243266154,-500.0,0.00019726,2]
[388563174,1759243266182,-500.0,0.00019726,2]
[388563175,1759243266211,-500.0,0.00019726,2]
[388563176,1759243266238,-500.0,0.00019726,2]
[388563177,1759243266264,-685.58,0.00019726,2]
[388563178,1759243266292,-3213.89,0.00019726,2]
[388563179,1759243266319,-500.0,0.00019726,2]
[388563180,1759243266347,-500.0,0.00019726,2]
[388563181,1759243266375,-500.0,0.00019726,2]
[388563182,1759243266524,-323.78127316,0.00019726,2]
[388563183,1759243266561,-3751.52,0.00019726,2]
[388563184,1759243266591,-500.0,0.00019726,2]
[388563185,1759243266621,-631.04,0.00019726,2]
[388563186,1759243266649,-500.0,0.00019726,2]
[388563187,1759243266681,-168.0,0.00019775,2]
[388563188,1759243266715,-363.0,0.0001978,2]
[388563189,1759243266745,-500.0,0.0001978,2]
[388563190,1759243266773,-4183.35754995,0.00019898,2]
[388563191,1759243266802,-151.0,0.000199,2]
[388563192,1759243266831,-151.0,0.000199,2]
[388563193,1759243266857,-500.0,0.00019973,2]
[388563194,1759243266885,-500.0,0.00019973,2]
[388563195,1759243266912,-200.0,0.00019973,2]
[388563196,1759243266938,-500.0,0.00019973,2]
[388563197,1759243266965,-500.0,0.00019973,2]
[388563198,1759243266992,-501.48836562,0.00019973,2]
[388563199,1759243267019,-500.0,0.00019973,2]
[388563200,1759243267046,-510.38639232,0.00019973,2]
[388563201,1759243267073,-500.68444282,0.00019973,2]
[388563202,1759243267100,-500.0,0.00019973,2]
[388563203,1759243267128,-500.0,0.00019973,2]
[388563204,1759243267154,-440.01647922,0.00019973,2]
[388563205,1759243267181,-500.0,0.00019973,2]
[388563206,1759243267206,-273.56574734,0.00019973,2]
[388563207,1759243267233,-500.0,0.00019973,2]
[388563208,1759243267262,-500.0,0.00019973,2]
[388563209,1759243267288,-500.0,0.00019973,2]
[388563210,1759243267313,-500.0,0.00019973,2]
[388563211,1759243267339,-500.0,0.00019973,2]
[388563212,1759243267365,-500.0,0.00019973,2]
[388563213,1759243267392,-500.0,0.00019973,2]
[388563214,1759243267418,-15573.54530851,0.0001999,2]
[388563215,1759243267445,-666.34742186,0.0001999,2]
[388563216,1759243267472,-151.0,0.0002,2]
[388563217,1759243267499,-151.0,0.0002,2]
[388563218,1759243267527,-1123.0,0.0002,2]
[388563219,1759243267556,-224.01437502,0.0002,2]
[388563220,1759243267584,-500.0,0.0002,2]
[388563221,1759243267612,-11248.69005506,0.0002,2]
[388563222,1759243267637,-1000.0,0.0002,5]
[388563223,1759243267664,-603.06446826,0.0002,2]
[388563224,1759243267691,-500.0,0.0002,2]
[388563225,1759243267721,-500.0,0.0002,2]
[388563226,1759243267751,-500.0,0.0002,2]
[388563227,1759243267779,-556618.91403447,0.0002,2]
[388563229,1759243284271,-500.0,0.00019178,2]
[388563230,1759243284302,-617.08,0.00019178,2]
[388563231,1759243284332,-500.0,0.00019178,2]
[388563232,1759243284363,-500.0,0.00019452,2]
[388563233,1759243284395,-617.08,0.00019452,2]
[388563234,1759243284426,-500.0,0.00019452,2]
[388563235,1759243284457,-500.0,0.00019726,2]
[388563236,1759243284487,-617.08,0.00019726,2]
[388563237,1759243284516,-500.0,0.00019726,2]
[388563238,1759243284547,-27081.78337797,0.0002,2]
[388563239,1759243284578,-500.0,0.0002,2]
[388563240,1759243284608,-500.0,0.0002,2]
[388563241,1759243284639,-583.63680104,0.0002,2]
[388563242,1759243284668,-500.0,0.0002,2]
[388563243,1759243284698,-500.0,0.0002,2]
[388563244,1759243284729,-500.0,0.0002,2]
[388563245,1759243284764,-500.0,0.0002,2]
[388563246,1759243284795,-500.0,0.0002,2]
[388563247,1759243284827,-500.0,0.0002,2]
[388563248,1759243284860,-500.0,0.0002,2]
[388563249,1759243284890,-500.0,0.0002,2]
[388563250,1759243284920,-500.0,0.0002,2]
[388563251,1759243284949,-500.0,0.0002,2]
[388563252,1759243284978,-500.0,0.0002,2]
[388563253,1759243285194,-4000.0,0.0002,4]
[388563254,1759243285226,-519.41,0.0002,2]
[388563255,1759243285259,-500.0,0.0002,2]
[388563256,1759243285290,-500.0,0.0002,2]
[388563257,1759243285328,-500.0,0.0002,2]
[388563258,1759243285358,-500.0,0.0002,2]
[388563259,1759243285388,-500.0,0.0002,2]
[388563260,1759243285417,-500.0,0.0002,2]
[388563261,1759243285445,-500.0,0.0002,2]
[388563262,1759243285474,-500.0,0.0002,2]
[388563263,1759243285504,-500.0,0.0002,2]
[388563264,1759243285537,-3938.37,0.0002,2]
[388563265,1759243285569,-500.0,0.0002,2]
[388563266,1759243285599,-500.0,0.0002,2]
[388563267,1759243285629,-458.4745901,0.0002,2]
[388563268,1759243285658,-500.0,0.0002,2]
[388563269,1759243285688,-772.65,0.0002,2]
[388563270,1759243285720,-500.0,0.0002,2]
[388563271,1759243285750,-500.0,0.0002,2]
[388563272,1759243285785,-500.0,0.0002,2]
[388563273,1759243285816,-500.0,0.0002,2]
[388563274,1759243285846,-500.0,0.0002,2]
[388563275,1759243285877,-500.0,0.0002,2]
[388563276,1759243285906,-500.0,0.0002,2]
[388563277,1759243285935,-614.53,0.0002,2]
[388563278,1759243285965,-912.83,0.0002,2]
[388563279,1759243285992,-636.66,0.0002,2]
[388563280,1759243286020,-500.0,0.0002,2]
[388563281,1759243286048,-707.09,0.0002,2]
[388563282,1759243286077,-500.0,0.0002,2]
[388563283,1759243286107,-500.0,0.0002,2]
[388563284,1759243286136,-519.25,0.0002,2]
[388563285,1759243286165,-500.0,0.0002,2]
[388563286,1759243286194,-500.0,0.0002,2]
[388563287,1759243286223,-500.0,0.0002,2]
[388563288,1759243286252,-623.93,0.0002,2]
[388563289,1759243286283,-500.0,0.0002,2]
[388563290,1759243286311,-500.0,0.0002,2]
[388563291,1759243286339,-500.0,0.0002,2]
[388563292,1759243286368,-500.0,0.0002,2]
[388563293,1759243286396,-500.0,0.0002,2]
[388563294,1759243286424,-380.08,0.0002,2]
[388563295,1759243286451,-500.0,0.0002,2]
[388563296,1759243286479,-500.0,0.0002,2]
[388563297,1759243286509,-520.64111825,0.0002,2]
[388563298,1759243286539,-500.0,0.0002,2]
[388563299,1759243286568,-500.0,0.0002,2]
[388563300,1759243286597,-500.0,0.0002,2]
[388563301,1759243286626,-500.0,0.0002,2]
[388563302,1759243286658,-500.0,0.0002,2]
[388563303,1759243286686,-500.0,0.0002,2]
[388563304,1759243286716,-618.4600659,0.0002,2]
[388563305,1759243286744,-500.0,0.0002,2]
[388563306,1759243286774,-973.16,0.0002,2]
[388563307,1759243286803,-500.0,0.0002,2]
[388563308,1759243286832,-500.0,0.0002,2]
[388563309,1759243286872,-500.0,0.0002,2]
[388563310,1759243286902,-500.0,0.0002,2]
[388563311,1759243286930,-500.0,0.0002,2]
[388563312,1759243286963,-685.58,0.0002,2]
[388563313,1759243286995,-3213.89,0.0002,2]
[388563314,1759243287025,-500.0,0.0002,2]
[388563315,1759243287056,-500.0,0.0002,2]
[388563316,1759243287087,-500.0,0.0002,2]
[388563317,1759243287116,-3751.52,0.0002,2]
[388563318,1759243287146,-500.0,0.0002,2]
[388563319,1759243287175,-500.0,0.0002,2]
[388563320,1759243287203,-617.08,0.0002,2]
[388563321,1759243287231,-500.0,0.0002,2]
[388563322,1759243287261,-500.0,0.0002,2]
[388563323,1759243287288,-167.41366945,0.00020017,2]
[388563324,1759243287319,-168.0,0.00020033,2]
[388563325,1759243287349,-168.0,0.00020046,2]
[388563326,1759243287378,-1000.0,0.00020121,2]
[388563327,1759243287409,-168.0,0.00020132,2]
[388563328,1759243287440,-168.0,0.0002018,2]
[388563329,1759243287470,-500.0,0.00020273,2]
[388563330,1759243287500,-500.0,0.00020273,2]
[388563331,1759243287530,-500.0,0.00020273,2]
[388563332,1759243287559,-500.0,0.00020273,2]
[388563333,1759243287588,-500.0,0.00020273,2]
[388563334,1759243287616,-500.0,0.00020273,2]
[388563335,1759243287646,-500.0,0.00020273,2]
[388563336,1759243287678,-500.0,0.00020273,2]
[388563337,1759243287708,-500.0,0.00020273,2]
[388563338,1759243287736,-500.0,0.00020273,2]
[388563339,1759243287765,-500.0,0.00020273,2]
[388563340,1759243287796,-500.0,0.00020273,2]
[388563341,1759243287826,-500.0,0.00020273,2]
[388563342,1759243287856,-500.0,0.00020273,2]
[388563343,1759243287886,-500.0,0.00020273,2]
[388563344,1759243287916,-500.0,0.00020273,2]
[388563345,1759243287945,-519.41,0.00020273,2]
[388563346,1759243287974,-500.0,0.00020273,2]
[388563347,1759243288003,-500.0,0.00020273,2]
[388563348,1759243288033,-500.0,0.00020273,2]
[388563349,1759243288062,-500.0,0.00020273,2]
[388563350,1759243288091,-500.0,0.00020273,2]
[388563351,1759243288119,-442.09522083,0.00020273,2]
[388563352,1759243288149,-500.0,0.00020273,2]
[388563353,1759243288180,-500.0,0.00020273,2]
[388563354,1759243288210,-500.0,0.00020273,2]
[388563355,1759243288240,-3938.37,0.00020273,2]
[388563356,1759243288421,-500.0,0.00020273,2]
[388563357,1759243288452,-500.0,0.00020273,2]
[388563358,1759243288484,-500.0,0.00020273,2]
[388563359,1759243288517,-772.65,0.00020273,2]
[388563360,1759243288548,-500.0,0.00020273,2]
[388563361,1759243288578,-500.0,0.00020273,2]
[388563362,1759243288607,-500.0,0.00020273,2]
[388563363,1759243288639,-500.0,0.00020273,2]
[388563364,1759243288671,-500.0,0.00020273,2]
[388563365,1759243288701,-500.0,0.00020273,2]
[388563366,1759243288731,-500.0,0.00020273,2]
[388563367,1759243288761,-614.53,0.00020273,2]
[388563368,1759243288792,-912.83,0.00020273,2]
[388563369,1759243288822,-636.66,0.00020273,2]
[388563370,1759243288851,-500.0,0.00020273,2]
[388563371,1759243288880,-707.09,0.00020273,2]
[388563372,1759243288911,-500.0,0.00020273,2]
[388563373,1759243288940,-500.0,0.00020273,2]
[388563374,1759243288970,-519.25,0.00020273,2]
[388563375,1759243288999,-500.0,0.00020273,2]
[388563376,1759243289030,-500.0,0.00020273,2]
[388563377,1759243289060,-500.0,0.00020273,2]
[388563378,1759243289091,-623.93,0.00020273,2]
[388563379,1759243289123,-500.0,0.00020273,2]
[388563380,1759243289153,-500.0,0.00020273,2]
[388563381,1759243289184,-535.16757563,0.00020273,2]
[388563382,1759243289215,-500.0,0.00020273,2]
[388563383,1759243289247,-500.0,0.00020273,2]
[388563384,1759243289280,-500.0,0.00020273,2]
[388563385,1759243289310,-500.0,0.00020273,2]
[388563386,1759243289341,-500.0,0.00020273,2]
[388563387,1759243289373,-182.71,0.00020273,2]
[388563388,1759243289404,-500.0,0.00020273,2]
[388563389,1759243289435,-500.0,0.00020273,2]
[388563390,1759243289465,-396.92549264,0.00020273,2]
[388563391,1759243289498,-500.0,0.00020273,2]
[388563392,1759243289531,-500.0,0.00020273,2]
[388563393,1759243289563,-973.16,0.00020273,2]
[388563394,1759243289595,-500.0,0.00020273,2]
[388563395,1759243289627,-500.0,0.00020273,2]
[388563396,1759243289658,-500.0,0.00020273,2]
[388563397,1759243289690,-500.0,0.00020273,2]
[388563398,1759243289721,-500.0,0.00020273,2]
[388563399,1759243289751,-685.58,0.00020273,2]
[388563400,1759243289788,-3213.89,0.00020273,2]
[388563401,1759243289819,-500.0,0.00020273,2]
[388563402,1759243289853,-500.0,0.00020273,2]
[388563403,1759243289888,-500.0,0.00020273,2]
[388563404,1759243289919,-3751.52,0.00020273,2]
[388563405,1759243289950,-490.00000006,0.00020273,2]
[388563406,1759243289990,-500.0,0.00020273,2]
[388563407,1759243290024,-617.08,0.00020273,2]
[388563408,1759243290054,-500.0,0.00020273,2]
[388563409,1759243290084,-245.0,0.00020274,2]
[388563410,1759243290115,-151.0,0.00020274,2]
[388563411,1759243290145,-1123.0,0.00020274,2]
[388563412,1759243290176,-500.0,0.00020274,2]
[388563413,1759243290207,-500.0,0.00020274,2]
[388563414,1759243290249,-168.0,0.00020292,2]
[388563415,1759243290292,-482.0,0.00020346,2]
[388563416,1759243290329,-168.0,0.00020462,2]
[388563417,1759243290365,-1000.0,0.00020521,2]
[388563418,1759243290402,-497.4327955,0.00020521,2]
[388563419,1759243290437,-1000.0,0.00020521,2]
[388563420,1759243290478,-584.98919306,0.00020521,2]
[388563421,1759243290515,-1000.0,0.00020521,2]
[388563422,1759243290551,-594.91083825,0.00020521,2]
[388563423,1759243290589,-1000.0,0.00020521,2]
[388563424,1759243290625,-461.47376216,0.00020521,2]
[388563425,1759243290657,-1000.0,0.00020521,2]
[388563426,1759243290691,-1000.0,0.00020521,2]
[388563427,1759243290728,-1000.0,0.00020521,2]
[388563428,1759243290764,-1000.0,0.00020521,2]
[388563429,1759243290802,-1000.0,0.00020521,2]
[388563430,1759243290838,-1000.0,0.00020521,2]
[388563431,1759243290868,-1000.0,0.00020521,2]
[388563432,1759243290905,-168.0,0.00020537,2]
[388563433,1759243290945,-500.0,0.00020547,2]
[388563434,1759243290979,-500.0,0.00020547,2]
[388563435,1759243291015,-285.07591286,0.00020547,2]
[388563436,1759243291051,-500.0,0.00020547,2]
[388563437,1759243291084,-500.0,0.00020547,2]
[388563438,1759243291116,-500.0,0.00020547,2]
[388563439,1759243291149,-500.0,0.00020547,2]